bitfinex/quotes_ETHUSD_20240924
["timestamp","ask_amount","ask_price","bid_price","bid_amount"]
[1727202594384,0.78628462,2643.5,2643.4,5.431872]
[1727202594580,0.78628462,2643.5,2643.4,4.59412]
[1727202594889,0.78628462,2643.5,2643.4,8.37701]
[1727202595175,0.78628462,2643.6,2643.4,4.59409]
[1727202595355,0.78628462,2643.5,2643.4,8.377]
[1727202596609,0.78628462,2643.5,2643.4,4.59409]
[1727202597510,0.78628462,2643.5,2643.4,8.9502643]
[1727202597683,0.78628462,2643.8,2643.5,3.78286]
[1727202600082,0.78628462,2643.9,2643.5,3.78286]
[1727202600416,0.78628462,2643.9,2643.4,5.74479391]
[1727202600577,0.78628462,2643.7,2643.4,4.59409]
[1727202601021,4.56900462,2643.6,2643.4,0.8112]
[1727202601180,4.56900462,2643.6,2643.0,0.8112]
[1727202601181,3.78313,2643.4,2643.0,0.8112]
[1727202601379,3.78315,2643.3,2643.0,0.8112]
[1727202601686,4.57032235,2643.3,2643.0,0.8112]
[1727202601877,0.78717235,2643.3,2643.0,4.59471]
[1727202603709,0.78717235,2643.2,2643.0,0.8112]
[1727202604142,0.78717235,2643.1,2642.9,4.7837]
[1727202604311,0.78717235,2643.1,2642.9,1.0]
[1727202604844,0.78717235,2643.1,2642.9,4.78359]
[1727202605044,0.78717235,2643.1,2643.0,3.78357]
[1727202605250,0.78717235,2643.1,2642.9,1.0]
[1727202605432,0.78717235,2643.0,2642.9,1.0]
[1727202605632,0.78717235,2643.0,2642.9,4.78372]
[1727202605957,0.78717235,2643.0,2642.9,1.0]
[1727202606457,0.78717235,2643.1,2642.9,4.78369]
[1727202606611,0.78717235,2643.2,2643.0,4.343429]
[1727202606813,0.78717235,2643.2,2642.9,4.78362]
[1727202607744,0.78717235,2643.1,2642.9,1.0]
[1727202607949,0.78717235,2643.1,2642.9,4.78363]
[1727202608309,0.78717235,2643.2,2643.0,3.78357]
[1727202608510,1.17942694,2643.3,2643.0,3.7835]
[1727202608511,0.78717235,2643.3,2643.0,3.7835]
[1727202608744,0.78717235,2643.2,2643.0,3.78349]
[1727202608910,0.78717235,2643.3,2643.1,3.78339]
[1727202609130,0.78717235,2643.3,2643.0,3.78349]
[1727202609526,0.78717235,2643.2,2643.0,3.78349]
[1727202609721,0.78717235,2643.2,2643.0,4.721712]
[1727202610131,0.78717235,2643.1,2643.0,4.721712]
[1727202610667,0.78717235,2643.2,2643.0,0.938222]
[1727202610843,0.78717235,2643.2,2643.1,3.78343]
[1727202612178,1.17942694,2643.3,2643.1,3.78343]
[1727202612948,0.78841274,2643.2,2642.9,4.78372]
[1727202613177,0.78841274,2643.2,2642.9,1.0]
[1727202613375,0.78841274,2643.0,2642.9,1.0]
[1727202614078,1.17942694,2643.1,2642.9,1.0]
[1727202614079,0.78841274,2643.1,2642.9,4.78372]
[1727202614483,0.78841274,2643.2,2643.0,4.59847]
[1727202614687,0.78841274,2643.3,2643.2,4.59819]
[1727202614912,0.78841274,2643.5,2643.3,4.59804]
[1727202615181,0.78841274,2643.5,2643.4,3.783]
[1727202615349,1.17942694,2643.6,2643.3,4.59804]
[1727202615543,0.78866779,2643.4,2643.2,3.78327]
[1727202615742,0.78866779,2643.4,2643.1,4.59833]
[1727202615989,0.78866779,2643.4,2642.9,4.78361]
[1727202615990,0.78866779,2643.3,2643.0,3.78351]
[1727202616192,0.78866779,2643.2,2642.9,5.59851]
[1727202616369,0.78866779,2643.2,2642.9,9.38215]
[1727202616569,0.78866779,2643.1,2643.0,3.78357]
[1727202616769,0.78866779,2643.1,2642.9,1.8149]
[1727202617886,0.78866779,2643.1,2642.9,5.59862]
[1727202618199,0.78866779,2643.0,2642.9,1.0]
[1727202618486,0.5778,2643.0,2642.9,1.0]
[1727202618658,5.54079694,2643.0,2642.9,1.0]
[1727202618986,5.54079694,2643.0,2642.4,0.0377403]
[1727202618987,3.78375,2642.9,2642.4,0.0377403]
[1727202619205,0.7883628,2642.5,2642.4,0.0377403]
[1727202619507,1.18254421,2642.6,2642.4,0.0377403]
[1727202619666,1.18254421,2642.5,2642.4,0.0377403]
[1727202619975,4.96683421,2642.5,2642.4,0.0377403]
[1727202620175,2.47018689,2642.5,2642.4,0.0377403]
[1727202620378,1.18254421,2642.5,2642.4,0.0377403]
[1727202620570,5.36101561,2642.5,2642.4,0.0377403]
[1727202620799,3.78429,2642.5,2642.4,0.0377403]
[1727202620962,5.36101561,2642.5,2642.4,0.0377403]
[1727202621166,5.91101561,2642.5,2642.4,0.0377403]
[1727202621476,6.74037747,2642.5,2642.4,0.0377403]
[1727202621678,7.13540487,2642.5,2642.4,0.0377403]
[1727202622001,9.26629838,2642.5,2642.4,0.0377403]
[1727202622617,11.62740768,2642.5,2642.4,0.0377403]
[1727202622909,11.6272941,2642.5,2642.4,0.0377403]
[1727202623067,11.62687192,2642.5,2642.4,0.0377403]
[1727202623484,11.62490041,2642.5,2642.4,0.0377403]
[1727202623899,9.26629838,2642.5,2642.4,0.0377403]
[1727202624169,12.26629838,2642.5,2642.4,0.0377403]
[1727202624564,12.77211696,2642.5,2642.4,0.00829405]
[1727202624971,4.91438,2640.9,2640.8,0.0377403]
[1727202625170,8.04419912,2640.9,2640.8,0.0377403]
[1727202625368,9.22208365,2640.9,2640.8,0.0377403]
[1727202625628,8.82815983,2640.9,2640.8,0.0377403]
[1727202625909,11.04419912,2640.9,2640.8,0.0377403]
[1727202626065,14.686719,2640.9,2640.8,0.0377403]
[1727202626264,14.686719,2640.9,2638.7,3.78965]
[1727202626265,4.91553,2640.1,2639.3,3.8266203]
[1727202626509,4.91553,2640.1,2639.4,3.78866]
[1727202626675,4.91553,2640.1,2639.3,0.0377403]
[1727202626876,4.36553,2640.1,2639.3,3.8265203]
[1727202627092,4.91553,2640.1,2639.3,0.0377403]
[1727202627275,6.09882391,2640.1,2639.3,0.0377403]
[1727202628203,9.09882391,2640.1,2639.3,0.0377403]
[1727202628366,8.04634912,2639.4,2639.3,0.0377403]
[1727202628818,11.04634912,2639.4,2639.3,0.0377403]
[1727202629114,11.04634912,2639.4,2638.4,0.0415112]
[1727202629115,0.5778,2638.6,2638.4,0.0415112]
[1727202629528,3.78956,2638.9,2638.4,0.0415112]
[1727202629823,0.5778,2639.0,2638.4,0.0415112]
[1727202629967,3.78924,2639.1,2638.4,0.8086112]
[1727202630171,3.78958,2638.9,2638.4,0.8086112]
[1727202630410,3.78984,2638.7,2638.4,0.0415112]
[1727202631320,3.78971,2638.8,2638.4,0.0415112]
[1727202631530,3.78976,2638.7,2638.4,0.0415112]
[1727202631875,4.168478,2638.9,2638.4,0.0415112]
[1727202632272,0.4168478,2638.8,2638.4,0.0415112]
[1727202634235,4.36659,2639.4,2638.4,0.0415112]
[1727202634236,3.78895,2639.3,2638.5,3.79002]
[1727202634520,0.5778,2639.4,2638.5,3.79]
[1727202634675,0.5778,2639.4,2638.4,0.0415112]
[1727202634881,3.12981912,2639.1,2638.4,0.0415112]
[1727202635104,6.91907912,2639.1,2638.4,0.0415112]
[1727202635306,3.78926,2639.1,2638.4,3.8315712]
[1727202635488,0.06594823,2639.3,2638.6,3.7898]
[1727202635713,0.44323882,2639.3,2638.7,3.78965]
[1727202636077,4.23219882,2639.3,2638.6,4.28976]
[1727202636313,4.23219882,2639.3,2638.6,8.07954]
[1727202636519,3.0,2639.7,2638.6,8.07954]
[1727202636520,3.78837,2639.7,2638.7,0.8117]
[1727202636813,3.78869,2639.5,2638.9,3.78942]
[1727202636986,3.78869,2639.5,2638.8,3.78946]
[1727202637186,4.546397,2639.5,2638.8,3.78946]
[1727202637721,3.78897,2639.3,2638.6,4.28977]
[1727202637893,3.78897,2639.3,2638.7,3.78963]
[1727202638592,3.78897,2639.3,2638.8,3.78956]
[1727202638898,3.78897,2639.3,2638.7,3.78964]
[1727202639407,3.78865,2639.5,2638.9,3.78945]
[1727202639591,7.57736,2639.5,2638.9,3.78945]
[1727202639920,3.78888,2639.3,2638.7,0.807941]
[1727202640105,3.78866,2639.5,2638.6,0.5]
[1727202640106,3.78866,2639.5,2638.9,3.78944]
[1727202640308,3.78868,2639.5,2638.7,3.78972]
[1727202640617,0.5778,2639.9,2639.1,3.78916]
[1727202640618,3.78853,2639.6,2639.1,3.78916]
[1727202640815,3.78822,2639.8,2639.1,3.78916]
[1727202641021,3.70761912,2639.9,2639.3,3.78879]
[1727202641022,4.36586,2639.9,2639.3,3.78879]
[1727202641513,4.36586,2639.9,2639.0,0.8117]
[1727202641514,3.78856,2639.6,2639.0,0.8117]
[1727202641717,3.7886,2639.5,2639.0,0.8117]
[1727202642294,3.78856,2639.6,2639.0,0.8117]
[1727202642492,3.78825,2639.8,2639.1,3.78908]
[1727202642705,4.61271222,2639.8,2639.3,3.78885]
[1727202643016,1.32725303,2639.9,2639.4,3.78872]
[1727202643017,0.74945303,2639.9,2639.4,3.78872]
[1727202643521,3.78817,2639.8,2639.2,3.78891]
[1727202643721,8.0302323,2639.8,2639.2,3.78891]
[1727202644024,0.4537623,2639.8,2639.4,3.78873]
[1727202644180,0.74945303,2639.9,2639.2,3.78891]
[1727202644380,0.74945303,2639.9,2639.4,3.78873]
[1727202644720,4.53754303,2639.9,2639.4,3.78873]
[1727202645023,3.78832,2639.7,2639.2,3.78891]
[1727202645324,4.53754303,2639.9,2639.6,3.78842]
[1727202645325,0.74945303,2639.9,2639.6,3.78842]
[1727202645556,19.0,2640.1,2640.0,3.78787]
[1727202646028,19.0,2640.1,2640.0,6.91768912]
[1727202646344,19.0,2640.1,2640.0,11.80753525]
[1727202646634,18.20932242,2640.1,2640.0,11.80753525]
[1727202647532,9.13099456,2640.1,2640.0,15.48735437]
[1727202647829,9.13099456,2640.1,2640.0,12.35753525]
[1727202648433,7.6244782,2640.1,2640.0,12.35753525]
[1727202648606,7.6244782,2640.1,2640.0,13.09882884]
[1727202650393,6.55735337,2640.1,2640.0,13.09882884]
[1727202650598,3.8268376,2641.8,2640.0,13.09882884]
[1727202650599,0.0414476,2641.8,2641.4,3.78572]
[1727202650831,0.0414476,2641.8,2641.2,3.87111271]
[1727202650999,0.0414476,2641.8,2641.5,3.7856]
[1727202651197,0.0414476,2641.8,2641.4,3.78573]
[1727202651526,0.0414476,2641.8,2641.5,3.78561]
[1727202652324,0.0414476,2641.8,2641.2,0.84770327]
[1727202652325,0.0414476,2641.8,2641.3,3.78588]
[1727202652729,0.0414476,2641.8,2641.6,3.78551]
[1727202652942,0.0414476,2641.8,2641.7,3.78544]
[1727202653860,0.0414476,2641.8,2641.7,3.86113806]
[1727202654021,0.0414476,2641.8,2641.7,3.78544]
[1727202654360,0.0414476,2641.8,2641.7,4.68083804]
[1727202654562,0.0414476,2641.8,2641.7,5.83888608]
[1727202654720,0.0414476,2641.8,2641.7,8.83888608]
[1727202660568,0.0414476,2641.8,2641.7,0.8197]
[1727202660775,0.0414476,2641.8,2641.7,3.78544]
[1727202661124,0.0414476,2641.8,2641.5,3.78568]
[1727202661367,0.0414476,2641.8,2641.6,3.78547]
[1727202661565,0.0414476,2641.8,2641.7,3.78544]
[1727202661869,0.0414476,2641.8,2641.7,12.23334371]
[1727202662053,0.0414476,2641.8,2641.7,8.362231]
[1727202663064,0.0414476,2641.8,2641.7,7.60514]
[1727202664353,0.0414476,2641.8,2641.7,3.0]
[1727202664562,0.0414476,2641.8,2641.6,3.78547]
[1727202664769,0.0414476,2641.8,2641.7,3.78544]
[1727202667566,0.0414476,2641.8,2641.6,3.78547]
[1727202667770,0.0414476,2641.8,2641.6,7.57095]
[1727202668067,0.0414476,2641.8,2641.6,3.78547]
[1727202668271,0.0414476,2641.8,2641.4,3.78579]
[1727202668470,3.8268276,2641.8,2641.3,3.78591]
[1727202668639,0.0414476,2641.8,2641.4,3.78585]
[1727202668839,0.0414476,2641.8,2641.5,3.78566]
[1727202669066,0.0414476,2641.8,2641.6,3.78556]
[1727202669572,0.0414476,2641.8,2641.4,3.78579]
[1727202669777,0.0414476,2641.8,2641.4,3.78575]
[1727202670066,0.0414476,2641.8,2641.4,4.542915]
[1727202670271,0.0414476,2641.8,2641.5,3.7857]
[1727202670646,0.0414476,2641.8,2641.3,3.14385259]
[1727202670959,0.0414476,2641.8,2641.6,3.78553]
[1727202671138,0.0414476,2641.8,2641.5,3.7857]
[1727202671471,0.0414476,2641.8,2641.4,3.78573]
[1727202671874,0.0414476,2641.8,2641.6,3.78556]
[1727202672372,0.0414476,2641.8,2641.4,3.78573]
[1727202672734,0.0414476,2641.8,2641.5,3.78572]
[1727202673161,0.0414476,2641.8,2641.6,3.86127316]
[1727202673474,0.0414476,2641.8,2641.7,4.57064]
[1727202673847,0.0414476,2641.8,2641.7,3.78544]
[1727202675367,0.0414476,2641.8,2641.6,3.7855]
[1727202675975,0.0414476,2641.8,2641.6,7.571]
[1727202676155,0.0414476,2641.8,2641.6,3.7855]
[1727202676551,0.0414476,2641.8,2641.3,3.0]
[1727202676552,0.8560476,2641.8,2641.3,3.0]
[1727202676769,0.8560476,2641.8,2641.2,3.78606]
[1727202676770,0.46412076,2641.7,2641.4,3.78585]
[1727202676951,0.8560476,2641.8,2641.4,3.78585]
[1727202678698,0.8560476,2641.8,2641.5,3.7857]
[1727202679400,0.8560476,2641.8,2641.4,3.78586]
[1727202679757,0.8560476,2641.8,2641.4,7.57165]
[1727202680053,0.0414476,2641.8,2641.4,3.78573]
[1727202680266,0.0414476,2641.8,2641.7,3.78544]
[1727202680691,0.0414476,2641.8,2641.6,3.7855]
[1727202680859,0.0414476,2641.8,2641.7,3.78544]
[1727202682163,0.0414476,2641.8,2641.4,3.78584]
[1727202682590,0.0414476,2641.8,2641.2,3.78605]
[1727202682591,0.0414476,2641.8,2641.6,3.78549]
[1727202682897,0.0414476,2641.8,2641.4,3.78576]
[1727202683105,0.0414476,2641.8,2641.5,3.78572]
[1727202683507,0.0414476,2641.8,2641.6,3.86121424]
[1727202683814,0.0414476,2641.8,2641.6,3.78551]
[1727202684375,0.0414476,2641.8,2641.4,3.78576]
[1727202684608,0.0414476,2641.8,2641.5,3.78571]
[1727202684871,0.0414476,2641.8,2641.7,3.78544]
[1727202685508,0.0414476,2641.8,2641.7,4.542541]
[1727202686015,0.0414476,2641.8,2641.7,5.042541]
[1727202686174,0.0414476,2641.8,2641.7,4.28544]
[1727202686598,0.8146,2642.2,2641.7,4.28544]
[1727202686599,0.8060476,2642.2,2641.8,3.78521]
[1727202686797,0.8060476,2642.2,2641.7,4.28544]
[1727202687112,0.45906576,2642.1,2641.7,0.5]
[1727202687290,3.78508,2642.0,2641.7,0.5]
[1727202687878,4.5908476,2642.2,2641.7,0.5]
[1727202687879,0.8060476,2642.2,2641.7,0.5]
[1727202688377,0.8060476,2642.2,2641.8,3.78522]
[1727202688773,3.78454,2642.4,2641.8,3.78522]
[1727202688979,3.78465,2642.3,2641.8,3.78528]
[1727202689333,0.0414794,2642.7,2642.2,3.7847]
[1727202689625,0.0414794,2642.7,2642.5,3.78419]
[1727202689918,0.0414794,2642.7,2642.4,7.56864]
[1727202690223,0.0414794,2642.7,2642.4,3.7843]
[1727202690424,0.0414794,2642.7,2642.6,3.78415]
[1727202691235,0.0414794,2642.7,2642.4,0.37843]
[1727202691236,0.8146,2643.1,2642.8,3.7838]
[1727202691378,0.0419286,2643.1,2643.0,3.78357]
[1727202691583,0.0419286,2643.1,2642.9,3.85936578]
[1727202691777,0.0419286,2643.1,2642.9,3.78363]
[1727202692194,0.8951114,2643.4,2642.9,7.56727]
[1727202692518,0.8951114,2643.4,2643.0,3.78357]
[1727202692732,1.67572339,2643.4,2643.0,3.85923318]
[1727202693008,1.67572339,2643.4,2642.9,7.56726]
[1727202693185,0.8951114,2643.4,2642.9,3.78363]
[1727202693392,0.8951114,2643.4,2642.9,3.78362]
[1727202693655,0.8951114,2643.4,2643.2,3.78326]
[1727202693785,0.8951114,2643.4,2642.5,3.7852]
[1727202693979,0.8951114,2643.4,2643.3,3.78314]
[1727202693980,0.0805114,2643.4,2643.3,3.78314]
[1727202694412,0.0805114,2643.4,2643.3,3.85878706]
[1727202694896,0.0805114,2643.4,2643.3,10.6527973]
[1727202695102,0.0805114,2643.4,2643.3,6.78314]
[1727202695304,0.0805114,2643.4,2643.3,7.921562]
[1727202697186,0.0805114,2643.4,2643.3,6.78314]
[1727202698538,0.0805114,2643.4,2643.3,3.0]
[1727202698835,0.0805114,2643.4,2643.3,3.78314]
[1727202699333,0.0805114,2643.4,2643.3,8.4705973]
[1727202699731,0.0805114,2643.4,2643.3,11.4705973]
[1727202699892,0.0805114,2643.4,2643.3,12.99597703]
[1727202701198,0.0805114,2643.4,2643.3,9.12631973]
[1727202702006,0.0805114,2643.4,2643.2,3.78319]
[1727202702334,0.0805114,2643.4,2643.3,3.78314]
[1727202702506,0.0805114,2643.4,2643.2,3.78319]
[1727202702934,0.0805114,2643.4,2643.3,3.78314]
[1727202703706,0.0805114,2643.4,2643.2,3.78319]
[1727202703922,0.0805114,2643.4,2643.3,3.78314]
[1727202704739,0.0805114,2643.4,2643.3,3.85878955]
[1727202706236,0.0805114,2643.4,2643.3,4.54733796]
[1727202706741,0.0805114,2643.4,2643.3,3.78314]
[1727202708301,0.0805114,2643.4,2643.2,3.78319]
[1727202708503,0.8600114,2643.4,2642.9,4.60152]
[1727202708808,0.8600114,2643.4,2643.1,3.78342]
[1727202709114,0.0805114,2643.4,2643.2,3.78328]
[1727202709850,0.0805114,2643.4,2643.3,0.0756542]
[1727202710157,0.0805114,2643.4,2643.3,3.78314]
[1727202710705,0.0805114,2643.4,2643.3,4.617686]
[1727202710913,0.0805114,2643.4,2643.3,11.4873433]
[1727202712267,0.0805114,2643.4,2643.3,7.617686]
[1727202712918,0.0805114,2643.4,2643.3,7.69332648]
[1727202713133,0.0805114,2643.4,2643.3,7.617686]
[1727202713728,0.0805114,2643.4,2643.3,7.69332631]
[1727202713913,0.0805114,2643.4,2643.3,7.617686]
[1727202714953,0.0805114,2643.4,2643.3,7.69332616]
[1727202715457,0.0805114,2643.4,2643.3,7.617686]
[1727202718719,0.0805114,2643.4,2643.3,6.78314]
[1727202729150,0.0805114,2643.4,2643.2,3.78321]
[1727202729352,0.8705114,2643.4,2643.3,3.78314]
[1727202730089,0.0805114,2643.4,2643.3,3.78314]
[1727202730249,0.0805114,2643.4,2643.3,3.85879167]
[1727202730770,0.0805114,2643.4,2643.3,3.78314]
[1727202731146,0.0805114,2643.4,2643.0,6.7835]
[1727202731358,4.57316,2643.3,2642.8,3.78375]
[1727202731546,3.13938834,2643.2,2642.4,3.78436]
[1727202731749,0.79,2642.7,2642.3,3.78457]
[1727202732194,0.79,2642.7,2642.6,3.78415]
[1727202732551,0.79,2642.7,2642.6,4.540923]
[1727202732552,0.0419286,2642.7,2642.6,4.540923]
[1727202732752,0.0419286,2642.7,2642.6,3.78408]
[1727202734500,0.0419286,2642.7,2642.3,6.78451]
[1727202734663,0.79,2642.6,2642.3,3.78449]
[1727202734865,0.79,2642.6,2642.5,3.78429]
[1727202735185,0.0419286,2642.7,2642.6,3.78415]
[1727202735591,0.0419286,2642.7,2642.5,3.78428]
[1727202736098,0.0419286,2642.7,2642.6,3.78415]
[1727202737862,0.0419286,2642.7,2641.9,3.8291]
[1727202738170,0.0419286,2642.7,2642.3,7.56902]
[1727202738374,0.79,2642.6,2642.2,3.7847]
[1727202738609,0.8319286,2642.6,2642.3,3.78457]
[1727202739110,0.0419286,2642.6,2642.5,3.78429]
[1727202739265,0.0419286,2642.6,2642.5,4.624066]
[1727202739584,0.0419286,2642.6,2642.5,3.78429]
[1727202741371,0.0419286,2642.6,2642.2,3.78467]
[1727202741692,0.79,2642.5,2642.3,3.78446]
[1727202742564,0.79,2642.5,2642.4,3.78443]
[1727202743008,0.79,2642.5,2642.2,3.78467]
[1727202745161,0.79,2642.5,2642.2,7.56931]
[1727202745395,0.79,2642.5,2642.2,3.78464]
[1727202746163,0.79,2642.5,2642.4,3.78443]
[1727202746466,0.0419286,2642.6,2642.3,3.78457]
[1727202747009,0.0419286,2642.6,2642.2,3.78466]
[1727202748299,0.0419286,2642.6,2642.1,3.78485]
[1727202748300,3.8261586,2642.6,2642.1,3.78485]
[1727202748809,3.8261586,2642.6,2642.2,3.7847]
[1727202749012,0.0419286,2642.6,2642.2,3.7847]
[1727202749611,0.0419286,2642.6,2642.3,3.78455]
[1727202750604,0.0419286,2642.6,2642.2,3.78472]
[1727202750777,3.8260786,2642.6,2642.2,3.78472]
[1727202751693,3.8260786,2642.6,2641.8,6.78515]
[1727202751694,3.78465,2642.3,2641.8,6.78515]
[1727202751911,0.88193746,2642.6,2641.8,3.78515]
[1727202751912,0.79,2642.2,2641.8,3.78515]
[1727202752230,4.57473,2642.2,2641.7,6.28542]
[1727202752719,4.57473,2642.2,2641.7,3.78542]
[1727202752919,4.5780758,2642.2,2641.7,3.78542]
[1727202753216,4.5780758,2642.2,2641.6,3.78547]
[1727202753418,3.78493,2642.1,2641.6,3.78547]
[1727202753823,3.7882758,2642.1,2641.6,3.78547]
[1727202753986,0.0033458,2642.1,2641.7,3.7854]
[1727202754501,0.0033458,2642.1,2641.7,3.78537]
[1727202754815,0.0033458,2642.1,2641.6,3.78557]
[1727202755000,0.0033458,2642.1,2641.5,1.0554124]
[1727202755205,3.78502,2642.0,2641.5,4.8410524]
[1727202755624,3.7882158,2642.1,2641.7,3.78542]
[1727202755825,3.7882158,2642.1,2641.5,4.8410524]
[1727202756009,0.7981,2642.0,2641.4,3.78585]
[1727202756181,0.7981,2642.0,2641.6,3.78549]
[1727202756516,0.7981,2642.0,2641.6,7.57098]
[1727202756923,0.8014458,2642.0,2641.7,3.78535]
[1727202757282,0.8014458,2642.0,2641.8,6.92934402]
[1727202757491,0.8014458,2642.0,2641.9,3.78515]
[1727202757492,0.0033458,2642.0,2641.9,3.78515]
[1727202758441,0.0033458,2642.0,2641.9,6.78515]
[1727202758730,0.0033458,2642.0,2641.9,9.4926994]
[1727202759898,0.0385828,2642.6,2642.4,4.57053]
[1727202760127,0.0385828,2642.6,2642.5,6.14412402]
[1727202760291,0.0385828,2642.6,2642.5,9.92841402]
[1727202761123,0.0385828,2642.6,2642.5,6.78429]
[1727202761307,0.0385828,2642.6,2642.5,8.2341844]
[1727202761700,0.0385828,2642.6,2642.5,11.37830842]
[1727202762334,0.0385828,2642.6,2642.5,13.43478008]
[1727202765294,0.0385828,2642.6,2642.5,13.93478008]
[1727202769549,0.0385828,2642.6,2642.5,14.43478008]
[1727202779645,0.78061199,2643.9,2642.5,14.43478008]
[1727202779830,1.1754716,2644.0,2643.5,3.78278]
[1727202779831,4.56283199,2644.0,2643.5,3.78278]
[1727202780153,4.56283199,2644.0,2643.5,7.56555]
[1727202780453,3.7824,2643.9,2643.4,3.78299]
[1727202780678,3.78266,2643.7,2642.7,3.0]
[1727202780816,3.78293,2643.5,2642.9,3.78364]
[1727202781011,3.78293,2643.5,2642.7,3.0]
[1727202781012,0.55,2643.6,2642.7,3.78391]
[1727202781214,0.78061199,2643.5,2642.6,3.78414]
[1727202781459,3.78351,2643.1,2642.6,3.78414]
[1727202781751,3.78326,2643.3,2642.6,3.78414]
[1727202781967,3.78329,2643.2,2642.6,3.78414]
[1727202782122,3.78329,2643.2,2642.6,3.78403]
[1727202782308,0.4563902,2643.1,2642.6,3.78403]
[1727202782508,0.7882,2643.0,2642.6,3.78403]
[1727202782748,0.7882,2643.0,2642.7,3.78396]
[1727202782935,3.78388,2642.8,2642.5,1.0]
[1727202783136,0.7882,2642.6,2642.5,1.0]
[1727202783343,4.57235,2642.6,2642.5,1.0]
[1727202783746,0.7882,2642.6,2642.5,1.0]
[1727202788960,0.7882,2642.6,2642.5,4.78429]
[1727202789114,0.8295,2643.1,2642.6,3.78412]
[1727202789318,4.61294,2643.1,2642.6,7.56818]
[1727202789519,4.61294,2643.1,2642.6,3.78406]
[1727202789818,0.8295,2642.9,2642.5,4.78427]
[1727202790843,0.8295,2642.9,2642.6,3.78411]
[1727202791048,0.8295,2642.9,2642.7,3.78392]
[1727202791249,1.42607996,2643.4,2642.7,3.78392]
[1727202791250,0.78061199,2643.4,2642.8,3.78386]
[1727202791421,0.8295,2643.3,2643.0,3.78349]
[1727202791866,0.8295,2643.3,2643.1,3.78337]
[1727202792233,0.8295,2643.3,2643.2,3.78329]
[1727202792440,0.8295,2643.3,2643.2,4.539956]
[1727202793339,0.8295,2643.6,2643.2,4.539956]
[1727202793561,0.8295,2643.6,2643.3,3.78301]
[1727202794065,0.8295,2643.6,2643.3,7.56607]
[1727202794238,0.8295,2643.6,2643.3,3.78301]
[1727202794563,0.8295,2643.6,2643.2,3.78328]
[1727202794926,0.8295,2643.6,2643.1,3.7834]
[1727202795224,0.8295,2643.6,2643.1,7.56673]
[1727202795860,0.8295,2643.6,2642.7,3.478392]
[1727202796170,0.8295,2643.4,2642.9,3.78363]
[1727202796463,0.8295,2643.4,2643.0,3.78355]
[1727202799121,0.8295,2643.4,2642.8,0.3478392]
[1727202799397,4.61257,2643.4,2642.9,3.78371]
[1727202799836,0.8295,2643.1,2642.6,3.78414]
[1727202800035,0.8295,2643.1,2642.5,8.5684]
[1727202800036,4.613,2643.1,2642.5,8.5684]
[1727202800239,4.613,2643.1,2642.5,4.7842]
[1727202800439,5.5306992,2643.1,2642.5,8.5684]
[1727202800728,5.5306992,2643.1,2642.6,3.78412]
[1727202801726,5.5306992,2643.1,2642.6,3.78406]
[1727202801932,0.8295,2643.1,2642.6,3.78406]
[1727202802137,0.8295,2643.1,2642.8,3.78385]
[1727202802365,1.61011199,2643.1,2642.8,3.78385]
[1727202803069,0.8295,2643.1,2642.8,3.78385]
[1727202803292,1.61011199,2643.1,2642.8,3.78385]
[1727202804283,1.61011199,2643.1,2642.8,7.56762]
[1727202804469,1.61011199,2643.1,2642.8,3.78382]
[1727202805587,1.61011199,2643.1,2642.7,3.78399]
[1727202806488,1.61011199,2643.1,2642.8,3.78384]
[1727202807899,1.61011199,2643.1,2642.8,7.56761]
[1727202808479,1.61011199,2643.1,2642.8,3.78377]
[1727202808683,0.8295,2643.1,2642.9,3.78364]
[1727202809049,0.78061199,2643.2,2642.9,4.540441]
[1727202809253,0.78061199,2643.5,2643.1,4.58543]
[1727202809450,0.8295,2643.7,2643.1,4.58543]
[1727202809451,0.78061199,2643.7,2643.6,3.78272]
[1727202809690,0.78061199,2643.8,2643.3,3.78304]
[1727202809890,0.78061199,2643.8,2643.5,3.78278]
[1727202810190,0.78061199,2643.8,2643.6,3.78265]
[1727202810362,0.78061199,2643.8,2643.4,3.78294]
[1727202811098,0.78061199,2643.8,2643.4,3.78289]
[1727202811474,1.61011199,2643.9,2643.6,3.78269]
[1727202811677,0.78061199,2643.8,2643.6,3.78269]
[1727202812322,0.78061199,2643.8,2643.6,0.756558]
[1727202812617,1.56729547,2644.1,2643.8,7.56477]
[1727202812618,0.78061199,2644.1,2643.8,7.56477]
[1727202812813,1.64869479,2644.2,2643.7,3.21734996]
[1727202813115,0.0385828,2644.2,2644.1,3.782]
[1727202813822,0.0385828,2644.2,2644.1,8.75839002]
[1727202814284,0.0385828,2644.2,2644.1,4.85258455]
[1727202818224,0.0385828,2644.2,2644.1,3.782]
[1727202820505,0.0385828,2644.2,2644.0,3.78212]
[1727202820701,0.0385828,2644.2,2644.1,3.782]
[1727202821526,0.0385828,2644.2,2643.9,3.78226]
[1727202821527,0.0385828,2644.2,2643.9,3.78227]
[1727202822211,0.0385828,2644.2,2643.9,3.7822]
[1727202822991,0.0385828,2644.2,2644.0,3.78214]
[1727202824798,0.0385828,2644.2,2644.1,3.782]
[1727202825523,0.0385828,2644.2,2644.1,4.5461]
[1727202825900,0.0385828,2644.2,2644.1,7.5461]
[1727202826091,0.0385828,2644.2,2644.1,9.54309355]
[1727202826444,0.0385828,2645.0,2644.9,3.78086]
[1727202826623,0.0385828,2645.0,2644.9,7.68666547]
[1727202827441,0.0385828,2645.0,2644.9,4.54496]
[1727202827594,0.0385828,2645.0,2644.9,4.92762555]
[1727202828203,0.0385828,2645.0,2644.9,1.14676555]
[1727202828407,0.0385828,2645.0,2644.8,3.78099]
[1727202828741,0.0385828,2645.0,2644.8,7.56191]
[1727202828921,0.0385828,2645.0,2644.8,3.78092]
[1727202829117,0.0385828,2645.0,2644.9,3.78086]
[1727202830753,0.0385828,2645.0,2644.8,3.78092]
[1727202830978,0.0385828,2645.0,2644.6,3.78121]
[1727202831264,0.0385828,2645.0,2644.6,3.78119]
[1727202834267,0.0385828,2645.0,2644.7,3.78111]
[1727202834564,0.0385828,2645.0,2644.8,3.78093]
[1727202835069,0.0385828,2645.0,2644.9,3.78086]
[1727202835529,0.0385828,2645.0,2644.8,3.781]